bitfinex-derivatives/quotes_ETHF0:USTF0_20260310
["timestamp","ask_amount","ask_price","bid_price","bid_amount"]
[1773131062080,0.61421366,2062.8,2061.9,0.57834407]
[1773131062681,0.61421366,2062.8,2062.0,0.57834407]
[1773131062979,0.61815735,2062.8,2062.0,0.57834407]
[1773131063276,0.00394369,2062.8,2062.0,0.57834407]
[1773131063480,0.00394369,2062.8,2062.0,6.54386975]
[1773131063774,0.00394369,2062.8,2061.9,0.24249]
[1773131063775,0.61421366,2063.2,2062.2,0.57834407]
[1773131064778,0.61924559,2063.2,2062.2,0.57834407]
[1773131065379,0.61924559,2063.2,2061.9,0.57834407]
[1773131065580,0.61421366,2063.0,2061.9,0.57834407]
[1773131066687,0.61421366,2063.0,2062.0,0.57834407]
[1773131071290,0.61421366,2063.0,2062.2,0.57834407]
[1773131071590,0.61924559,2063.2,2062.2,0.57834407]
[1773131071991,0.61924559,2063.2,2062.4,0.57834407]
[1773131072190,0.00503193,2063.2,2062.4,0.57834407]
[1773131072391,0.61924559,2063.2,2062.4,0.57834407]
[1773131072791,0.61924559,2063.2,2062.2,0.57834407]
[1773131076394,0.61924559,2063.2,2062.0,0.57185678]
[1773131080901,0.56505651,2063.0,2061.8,10.49185678]
[1773131081302,0.56505651,2063.0,2061.9,0.57185678]
[1773131086607,0.56505651,2062.8,2061.7,6.53738246]
[1773131086802,0.56505651,2062.8,2061.7,0.57185678]
[1773131087009,0.56505651,2062.6,2061.7,0.57185678]
[1773131087710,0.56505651,2063.1,2061.8,0.57185678]
[1773131088002,0.56505651,2063.1,2061.9,0.57185678]
[1773131088202,0.56505651,2062.9,2061.9,0.57185678]
[1773131088502,0.24237,2063.0,2061.8,5.96552568]
[1773131088503,0.56505651,2062.7,2061.8,5.96552568]
[1773131088706,0.56505651,2062.5,2061.5,6.53738246]
[1773131088904,0.56505651,2062.5,2061.5,0.57185678]
[1773131089098,2.8190083,2062.7,2061.4,5.96552568]
[1773131089099,0.56505651,2062.3,2061.4,5.96552568]
[1773131089303,0.56505651,2062.3,2061.2,6.53738246]
[1773131090209,0.56505651,2062.3,2061.3,0.57185678]
[1773131097314,0.56505651,2062.3,2061.1,0.56409226]
[1773131100415,0.57383044,2062.1,2061.1,0.56409226]
[1773131100620,0.57383044,2062.1,2061.0,0.00378215]
[1773131100814,0.57383044,2061.9,2061.0,0.00378215]
[1773131101817,6.92783044,2061.9,2061.0,0.00378215]
[1773131102017,0.57383044,2061.8,2061.0,0.00378215]
[1773131102815,0.57383044,2061.4,2060.3,0.56409226]
[1773131103922,0.57932403,2061.4,2060.3,0.57011302]
[1773131105320,0.00549359,2061.4,2060.5,0.55196005]
[1773131105520,0.00549359,2061.4,2060.7,0.55196005]
[1773131105724,0.54987134,2061.7,2060.8,0.55196005]
[1773131106720,0.55529972,2061.7,2060.8,0.55196005]
[1773131107024,0.55529972,2061.7,2060.5,0.55196005]
[1773131108820,0.54987134,2061.5,2060.5,0.55196005]
[1773131110924,0.55529972,2061.7,2060.5,0.55196005]
[1773131112331,0.54987134,2061.6,2060.5,0.55196005]
[1773131112830,0.54987134,2061.6,2060.3,0.55798081]
[1773131113021,0.54987134,2061.5,2060.3,0.55798081]
[1773131115325,0.54987134,2061.3,2060.3,0.55798081]
[1773131120935,0.54987134,2061.1,2060.3,0.00602076]
[1773131121632,0.54987134,2060.9,2059.7,0.55196005]
[1773131122534,0.54987134,2060.9,2059.7,0.55622883]
[1773131123532,0.54987134,2060.7,2059.7,0.55622883]
[1773131125834,0.54987134,2060.7,2059.8,0.55196005]
[1773131126035,0.54987134,2061.3,2060.2,0.55196005]
[1773131126437,0.54987134,2061.1,2060.0,0.55196005]
[1773131129438,0.54987134,2061.1,2060.1,0.55196005]
[1773131129946,0.54987134,2061.1,2060.2,0.55196005]
[1773131132545,0.54987134,2061.5,2060.2,0.55196005]
[1773131132944,0.54987134,2061.5,2060.3,0.55196005]
[1773131134050,0.54987134,2061.5,2060.4,0.56703311]
[1773131137156,0.5950943,2061.3,2060.3,0.56703311]
[1773131137356,0.5950943,2061.1,2060.1,0.56703311]
[1773131137957,0.5950943,2061.1,2059.9,0.56703311]
[1773131138253,0.5950943,2060.9,2059.9,0.56703311]
[1773131138456,0.5950943,2060.9,2059.7,0.57130189]
[1773131139053,0.5950943,2060.7,2059.7,0.57130189]
[1773131148859,0.5950943,2060.5,2059.7,0.00426878]
[1773131149060,0.5950943,2060.3,2059.7,0.00426878]
[1773131150163,0.5950943,2060.3,2059.7,0.56551509]
[1773131150761,0.59666542,2060.7,2059.7,0.56551509]
[1773131151262,0.59666542,2061.1,2059.9,0.56124631]
[1773131152060,0.59666542,2061.4,2060.2,0.56124631]
[1773131152763,0.59666542,2061.4,2060.4,0.56124631]
[1773131154760,0.00542838,2061.7,2060.4,0.56124631]
[1773131154959,0.59666542,2061.6,2060.4,6.52677199]
[1773131155159,0.59666542,2061.6,2060.5,0.56124631]
[1773131159260,0.59666542,2061.6,2060.6,0.56124631]
[1773131159763,0.59666542,2061.6,2060.7,0.56124631]
[1773131160364,0.00542838,2061.7,2060.7,0.56124631]
[1773131160566,0.59666542,2061.9,2060.9,0.56124631]
[1773131160766,0.59666542,2061.9,2061.0,0.56124631]
[1773131161461,0.59666542,2061.9,2060.6,0.56124631]
[1773131161661,0.60271188,2061.9,2060.6,0.56124631]
[1773131167071,0.00604646,2061.9,2060.8,0.59410702]
[1773131167673,0.56590918,2061.9,2060.8,0.59410702]
[1773131168363,0.56590918,2061.9,2061.0,0.59410702]
[1773131172373,0.55986272,2062.2,2061.2,0.59410702]
[1773131173375,0.56537992,2062.2,2061.2,0.59763536]
[1773131175476,0.56537992,2062.2,2061.4,0.59410702]
[1773131176774,0.0055172,2062.2,2061.4,0.59410702]
[1773131177178,0.56537992,2062.2,2061.4,0.59410702]
[1773131179076,0.56537992,2062.2,2061.2,0.59763536]
[1773131181476,0.56537992,2062.2,2061.2,0.59493536]
[1773131181774,0.55986272,2062.0,2061.2,0.00082834]
[1773131182170,0.55986272,2061.8,2060.8,0.59410702]
[1773131182974,0.55986272,2061.8,2060.6,0.59410702]
[1773131183278,0.55986272,2061.8,2060.6,0.59825307]
[1773131185279,0.55986272,2061.8,2060.7,0.59410702]
[1773131185583,0.55986272,2061.8,2060.8,0.59410702]
[1773131187386,0.55986272,2062.1,2061.0,0.59410702]
[1773131187580,0.55986272,2062.1,2061.1,0.59410702]
[1773131189083,0.55986272,2062.1,2060.9,0.59410702]
[1773131190481,0.55986272,2062.1,2061.1,0.59410702]
[1773131190988,0.55986272,2062.0,2061.1,0.59410702]
[1773131191680,0.55986272,2062.0,2060.9,0.59410702]
[1773131192786,0.55986272,2061.8,2060.7,6.5596327]
[1773131193083,0.55986272,2061.8,2060.7,0.59410702]
[1773131193473,0.57155379,2061.7,2060.7,0.59410702]
[1773131195680,0.57155379,2061.7,2060.6,0.5791488]
[1773131199485,6.354,2061.8,2060.6,0.5791488]
[1773131199486,0.24256,2061.4,2060.6,0.00414605]
[1773131199685,0.57155379,2061.3,2060.6,0.00414605]
[1773131199988,0.24256,2061.4,2060.3,0.57500275]
[1773131199989,0.57155379,2061.1,2060.3,0.57500275]
[1773131200183,0.57155379,2061.1,2060.2,0.57500275]
[1773131201086,0.57155379,2061.1,2060.2,0.57846427]
[1773131202692,0.57155379,2061.3,2060.3,0.57500275]
[1773131203091,0.57155379,2061.3,2060.3,10.23400275]
[1773131203291,0.57155379,2061.3,2060.4,0.57500275]
[1773131203591,0.57155379,2061.3,2060.3,0.57500275]
[1773131206191,0.57155379,2061.3,2060.4,0.57500275]
[1773131214595,0.57155379,2061.3,2060.2,6.51199165]
[1773131214797,0.56653669,2061.1,2060.2,0.54646597]
[1773131220403,0.56653669,2061.3,2060.2,0.54646597]
[1773131220597,0.56653669,2061.3,2060.5,0.54300445]
[1773131222297,0.56653669,2061.4,2060.6,0.54300445]
[1773131222500,0.56653669,2061.4,2060.7,0.54300445]
[1773131222900,0.56653669,2061.4,2060.6,6.50853013]
[1773131223100,0.56653669,2061.4,2060.6,0.54300445]
[1773131223403,0.56653669,2061.2,2060.3,0.54300445]
[1773131224404,0.56653669,2061.2,2060.4,0.54244025]
[1773131224891,0.56653669,2061.2,2060.5,0.54244025]
[1773131225099,0.56653669,2061.2,2060.6,0.54244025]
[1773131225800,0.59862856,2061.6,2060.7,0.54244025]
[1773131226095,1.31063828,2061.7,2061.0,0.54244025]
[1773131226301,1.90926684,2061.7,2061.0,0.54244025]
[1773131227199,1.31063828,2061.7,2061.0,0.54244025]
[1773131229200,0.59862856,2062.1,2061.0,5.96552568]
[1773131229396,0.59862856,2062.1,2061.3,0.54244025]
[1773131229800,0.59862856,2062.1,2061.5,0.54244025]
[1773131230000,0.59862856,2062.1,2061.3,6.50796593]
[1773131230204,0.59862856,2062.1,2061.3,0.54244025]
[1773131230603,0.59862856,2062.1,2061.0,0.54244025]
[1773131231107,0.59862856,2062.1,2061.2,0.54244025]
[1773131231307,0.59862856,2062.1,2061.3,0.54244025]
[1773131233405,0.0055172,2062.2,2061.3,0.54244025]
[1773131233911,0.60414576,2062.2,2061.5,0.54244025]
[1773131235011,0.60414576,2062.2,2061.5,10.19844025]
[1773131235211,0.60414576,2062.2,2061.5,0.54244025]
[1773131235407,0.60414576,2062.2,2061.2,0.54244025]
[1773131237210,0.60414576,2062.2,2061.3,0.54244025]
[1773131238812,0.60414576,2062.2,2061.4,10.20144025]
[1773131239013,0.60414576,2062.2,2061.5,0.54244025]
[1773131242512,0.60414576,2062.2,2061.2,0.54244025]
[1773131243819,0.60414576,2062.2,2061.1,0.54244025]
[1773131245421,0.60414576,2062.2,2061.3,0.54244025]
[1773131253227,0.60414576,2062.2,2061.4,0.54244025]
[1773131254923,0.60414576,2062.2,2061.6,0.56740662]
[1773131257227,0.60414576,2062.2,2061.7,0.56740662]
[1773131257423,0.60414576,2062.2,2061.7,0.57284299]
[1773131258828,0.57219062,2062.3,2061.7,0.57284299]
[1773131259831,0.57219062,2062.8,2061.8,0.56740662]
[1773131260027,0.57219062,2062.8,2061.9,0.56740662]
[1773131261026,0.57838328,2062.8,2061.9,0.56740662]
[1773131262331,0.57838328,2062.8,2061.9,10.23840662]
[1773131262931,0.57838328,2062.8,2062.0,0.56740662]
[1773131263131,0.57219062,2062.7,2062.0,0.56740662]
[1773131263333,0.57219062,2062.7,2061.7,16.21136867]
[1773131264129,0.57219062,2062.7,2061.7,0.57284299]
[1773131267931,0.57219062,2062.7,2061.8,0.56740662]
[1773131268237,0.57219062,2062.7,2061.9,0.56740662]
[1773131269738,0.57838328,2062.8,2062.1,0.56740662]
[1773131270947,0.00619266,2062.8,2062.1,6.5329323]
[1773131271239,0.00619266,2062.8,2062.2,0.56740662]
[1773131271437,0.57219062,2062.9,2062.2,0.56740662]
[1773131272638,0.57692539,2062.9,2062.2,0.56740662]
[1773131275944,0.00473477,2062.9,2062.2,0.56740662]
[1773131276345,0.54729369,2063.1,2062.4,0.58262824]
[1773131276541,0.54729369,2063.1,2062.6,0.58262824]
[1773131277143,0.54729369,2063.8,2062.6,0.58262824]
[1773131277447,0.55126845,2063.8,2062.6,0.58262824]
[1773131277844,0.54729369,2063.4,2062.4,10.26762824]
[1773131278048,0.54729369,2063.4,2062.4,9.685]
[1773131279450,0.54729369,2063.4,2062.1,0.58262824]
[1773131279647,0.54729369,2063.2,2062.1,0.58262824]
[1773131281447,0.54729369,2063.0,2061.9,0.58262824]
[1773131281643,0.54729369,2063.0,2062.0,0.58262824]
[1773131283550,0.54729369,2063.0,2061.8,0.58262824]
[1773131284258,0.55633231,2062.6,2061.7,0.00543637]
[1773131284455,0.55633231,2062.6,2061.7,0.57993562]
[1773131288855,0.55633231,2062.6,2061.7,0.00543637]
[1773131289061,0.55633231,2062.6,2061.7,0.57993562]
[1773131295868,0.55633231,2062.8,2061.7,0.57993562]
[1773131298565,0.55633231,2062.6,2061.7,0.57993562]
[1773131298766,0.55633231,2062.4,2061.7,0.00543637]
[1773131299069,0.55633231,2062.4,2061.4,0.57449925]
[1773131299973,0.55633231,2062.4,2061.4,0.58059357]
[1773131303171,0.55633231,2062.2,2061.4,0.58059357]
[1773131303469,0.56034793,2062.2,2061.4,0.00609432]
[1773131303971,0.56034793,2062.2,2061.4,0.58059357]
[1773131304469,0.56034793,2062.2,2061.4,0.00609432]
[1773131304869,0.56034793,2062.2,2061.4,0.58059357]
[1773131306672,0.56034793,2062.2,2061.4,0.00609432]
[1773131307373,0.56034793,2062.2,2061.5,0.57449925]
[1773131308164,0.56034793,2062.2,2061.4,0.00609432]
[1773131308369,0.55633231,2062.0,2061.1,0.57449925]
[1773131308874,0.55633231,2061.8,2061.1,0.57449925]
[1773131309372,0.55633231,2061.8,2061.1,0.57815267]
[1773131312070,0.55633231,2061.8,2061.1,0.00365342]
[1773131312375,0.55633231,2061.8,2060.7,0.57449925]
[1773131313278,0.55633231,2061.8,2060.7,0.58030792]
[1773131318481,0.55384083,2061.6,2060.7,0.58030792]
[1773131318780,0.55384083,2061.6,2060.8,0.59978703]
[1773131320182,0.55384083,2061.8,2060.8,0.59978703]
[1773131320875,0.55384083,2061.8,2060.9,0.59978703]
[1773131321079,0.55384083,2061.9,2060.9,0.59978703]
[1773131321679,0.55384083,2061.9,2061.2,0.59978703]
[1773131327182,0.79635083,2061.9,2060.8,6.56531271]
[1773131327386,0.55384083,2061.8,2060.8,0.59978703]
[1773131327587,0.55384083,2061.6,2060.8,0.59978703]
[1773131329193,0.55384083,2061.6,2060.7,0.6055957]
[1773131329393,0.55384083,2061.4,2060.7,0.00580867]
[1773131330390,0.55384083,2061.4,2060.7,0.6055957]
[1773131333399,0.55384083,2061.4,2060.7,0.00580867]
[1773131335399,0.55384083,2061.4,2060.6,0.59195009]
[1773131335400,0.55384083,2061.4,2060.5,0.59195009]
[1773131336299,0.55384083,2061.4,2060.5,0.59707909]
[1773131340196,6.355,2061.6,2060.7,0.59195009]
[1773131340197,0.56650926,2061.5,2060.7,0.59195009]
[1773131340396,0.56650926,2062.0,2060.7,0.59195009]
[1773131340597,0.56650926,2061.8,2060.7,0.59195009]
[1773131341800,0.80902926,2061.8,2060.7,0.59195009]
[1773131342095,0.56650926,2061.7,2060.7,0.59195009]
[1773131342298,0.56650926,2061.5,2060.7,0.59195009]
[1773131342701,0.56650926,2061.3,2060.7,0.59195009]
[1773131343796,6.355,2061.4,2060.7,0.59195009]
[1773131343797,6.93623724,2061.4,2060.7,0.59195009]
[1773131346196,0.58123724,2061.9,2060.8,0.55200848]
[1773131349103,0.58123724,2061.9,2060.9,0.55200848]
[1773131349606,0.58123724,2061.9,2061.0,0.55200848]
[1773131349798,0.58123724,2062.1,2061.1,0.55200848]
[1773131350005,0.58525286,2062.2,2061.3,0.55200848]
[1773131358012,0.58123724,2062.1,2061.0,0.55200848]
[1773131362218,0.58123724,2062.1,2061.1,0.55200848]
[1773131366617,0.58123724,2062.1,2061.2,0.55200848]
[1773131368124,0.58123724,2062.0,2061.2,0.55200848]
[1773131368620,0.58123724,2062.0,2061.1,0.55200848]
[1773131369221,0.58123724,2062.0,2061.1,6.51753416]
[1773131369515,0.58123724,2062.0,2061.4,0.55200848]
[1773131372831,0.58123724,2062.0,2061.6,0.55200848]
[1773131373029,0.58123724,2062.1,2061.6,0.55200848]
[1773131374935,0.58266681,2062.4,2061.6,0.55200848]
[1773131375628,0.58266681,2062.4,2061.4,0.5466364]
[1773131375828,0.58894464,2062.4,2061.4,0.5466364]
[1773131376729,0.58266681,2062.3,2061.4,0.5466364]
[1773131378633,0.58266681,2062.3,2061.7,0.5466364]
[1773131379938,0.00627783,2062.4,2061.9,0.5466364]
[1773131380137,0.58266681,2062.6,2061.9,0.5466364]
[1773131380339,0.58266681,2062.6,2062.0,0.5466364]
[1773131381233,0.58887157,2062.6,2062.0,0.55143768]
[1773131381435,0.58266681,2062.8,2062.0,0.55143768]
[1773131382340,0.58615908,2062.8,2062.0,0.55143768]
[1773131384142,0.58615908,2062.8,2062.0,0.00480128]
[1773131385741,0.58266681,2062.7,2061.6,0.5466364]
[1773131386839,0.58266681,2062.7,2061.6,0.55006876]
[1773131391148,0.58266681,2062.7,2061.7,0.5466364]
[1773131394352,0.59381991,2062.5,2061.7,0.5466364]
[1773131397051,6.353,2062.7,2061.6,0.00343236]
[1773131397052,0.59381991,2062.3,2061.6,0.00343236]
[1773131397257,0.59381991,2062.3,2061.6,0.58409034]
[1773131397749,0.59381991,2061.7,2061.2,6.01622556]
[1773131397951,0.59381991,2061.7,2060.5,10.02704261]
[1773131397952,0.59381991,2061.7,2060.7,0.58065798]
[1773131398148,0.59381991,2061.7,2060.8,0.58065798]
[1773131398654,0.59381991,2061.7,2060.8,0.58538243]
[1773131401254,6.94681991,2061.9,2060.8,0.58538243]
[1773131401449,0.59381991,2061.8,2060.8,0.58538243]
[1773131401846,0.59381991,2061.8,2060.9,0.58065798]
[1773131402750,6.354,2062.3,2060.9,0.58065798]
[1773131402751,0.59381991,2062.2,2060.9,0.58065798]
[1773131403056,0.59381991,2062.2,2061.0,0.58065798]
[1773131407762,0.59325077,2062.0,2060.9,0.5639441]
[1773131411050,0.59325077,2062.0,2061.1,0.5639441]
[1773131416260,0.59325077,2061.8,2061.1,0.5639441]
[1773131417063,0.59325077,2061.8,2060.9,0.5639441]
[1773131418962,0.59325077,2062.1,2060.9,0.5639441]
[1773131421868,0.59325077,2061.9,2060.9,0.5639441]
[1773131422864,0.59325077,2061.9,2061.0,0.5639441]
[1773131423064,0.59325077,2062.3,2061.0,0.8065441]
[1773131423270,0.59325077,2062.3,2061.2,0.5639441]
[1773131423474,0.59325077,2062.3,2061.3,0.5639441]
[1773131424161,0.59325077,2062.3,2061.4,0.5639441]
[1773131425874,0.59325077,2062.1,2061.4,0.5639441]
[1773131428770,0.59325077,2062.1,2061.3,0.5639441]
[1773131430069,0.59325077,2062.0,2061.3,0.5639441]
[1773131430272,0.59325077,2062.0,2061.2,0.5639441]
[1773131430474,0.59325077,2061.8,2061.0,0.5639441]
[1773131430668,0.59325077,2061.6,2061.0,0.5639441]
[1773131432478,0.59325077,2061.6,2060.8,0.56866855]
[1773131432672,0.59325077,2061.8,2060.8,0.56866855]
[1773131432973,0.59325077,2061.8,2061.1,0.5639441]
[1773131435882,0.55054372,2062.1,2061.1,0.5639441]
[1773131436079,0.55054372,2062.1,2061.2,0.5624163]
[1773131437378,0.55054372,2062.1,2061.3,0.5624163]
[1773131440184,6.355,2062.3,2061.2,6.01622556]
[1773131440185,0.55054372,2061.9,2061.2,6.57864186]
[1773131440379,0.55054372,2061.9,2061.2,0.5624163]
[1773131442484,0.55054372,2062.1,2061.2,0.5624163]
[1773131442688,0.55054372,2062.1,2061.3,0.5624163]
[1773131443390,1.56469713,2062.5,2061.3,0.5624163]
[1773131443587,0.55054372,2062.4,2061.3,0.5624163]
[1773131443881,0.55054372,2062.4,2061.4,0.5624163]
[1773131445790,0.55054372,2062.4,2061.5,0.5624163]
[1773131446991,1.87280085,2062.5,2061.6,0.5624163]
[1773131447190,1.87280085,2062.5,2061.7,0.5624163]
[1773131447587,0.55054372,2062.4,2061.7,0.5624163]
[1773131449096,0.00349227,2062.8,2061.9,0.59871037]
[1773131449296,0.00349227,2062.8,2062.0,0.59871037]
[1773131449297,0.56132057,2062.8,2062.0,0.59871037]
[1773131449795,0.00349227,2062.8,2062.1,0.59871037]
[1773131450694,0.00349227,2062.8,2062.2,0.59871037]
[1773131451494,0.5578283,2063.1,2062.2,0.59871037]
[1773131452502,0.56259432,2063.1,2062.2,0.59871037]
[1773131453098,0.5578283,2063.0,2062.0,0.59871037]
[1773131454794,0.56259432,2063.1,2062.0,0.59871037]
[1773131454998,0.56259432,2063.1,2061.9,15.70672556]
[1773131454999,0.56259432,2063.1,2062.2,0.59871037]
[1773131455600,0.00476602,2063.1,2062.2,0.59871037]
[1773131455801,0.5578283,2063.6,2062.5,0.59871037]
[1773131456001,0.5578283,2063.6,2062.4,2.82227285]
[1773131456002,0.5578283,2063.6,2062.7,0.59871037]
[1773131456895,0.56196852,2063.6,2062.7,0.60475256]
[1773131457300,0.00414022,2063.6,2062.7,0.60475256]
[1773131458199,0.56196852,2063.6,2062.7,0.60475256]
[1773131458405,0.56196852,2063.6,2062.7,0.00604219]
[1773131458607,0.5578283,2063.4,2062.7,0.00604219]
[1773131458814,0.5578283,2063.4,2062.7,0.60475256]
[1773131460009,0.56196852,2063.6,2062.7,0.60475256]
[1773131460513,0.5578283,2063.5,2062.7,0.00604219]
[1773131460802,0.5578283,2063.5,2062.7,0.60475256]
[1773131462211,0.00414022,2063.6,2062.7,0.60475256]
[1773131463111,0.5578283,2064.5,2063.2,0.59871037]
[1773131463409,0.5578283,2064.5,2063.3,0.59871037]
[1773131464001,0.5578283,2064.5,2063.2,9.436]
[1773131464002,0.56337663,2064.5,2063.5,0.5416064]
[1773131464201,10.26044344,2065.2,2063.8,0.5416064]
[1773131464202,0.56969985,2064.9,2063.8,0.5416064]
[1773131464416,0.56969985,2065.4,2063.9,0.5416064]
[1773131464616,0.56969985,2065.4,2064.1,0.5416064]
[1773131465112,0.57350163,2065.4,2064.1,0.5416064]
[1773131465507,0.57350163,2065.4,2064.4,0.5416064]
[1773131465706,0.57350163,2065.4,2064.5,0.5416064]
[1773131467411,0.56969985,2065.2,2064.4,0.00557246]
[1773131467603,0.56969985,2065.0,2063.8,0.5416064]
[1773131468106,0.56969985,2065.0,2063.9,0.5416064]
[1773131468615,0.56969985,2065.3,2063.9,0.54679522]
[1773131469913,0.56969985,2065.3,2064.2,0.5416064]
[1773131474710,0.00380178,2065.4,2064.5,0.5416064]
[1773131474911,0.00380178,2065.4,2064.6,0.5416064]
[1773131476012,0.57350163,2065.4,2064.6,0.5416064]
[1773131476814,0.00380178,2065.4,2064.7,0.5416064]
[1773131478913,0.00380178,2065.4,2064.7,9.9166064]
[1773131479113,0.00380178,2065.4,2064.8,0.5416064]
[1773131479313,0.57350163,2065.4,2064.8,0.5416064]
[1773131481023,0.57350163,2065.4,2064.4,0.5416064]
[1773131482423,0.56969985,2065.2,2064.2,9.368]
[1773131482626,0.56969985,2065.0,2064.1,0.5416064]
[1773131484318,0.56969985,2065.0,2063.9,0.54679522]
[1773131484719,0.56969985,2064.8,2063.9,0.54679522]
[1773131485521,0.56969985,2065.0,2063.9,0.54679522]
[1773131486227,0.56969985,2065.0,2064.0,0.5416064]
[1773131487322,0.56969985,2064.9,2064.1,1.0]
[1773131487721,0.56969985,2064.7,2063.9,0.00518882]
[1773131488325,0.56969985,2064.7,2063.9,0.54679522]
[1773131490427,0.56969985,2064.7,2063.9,0.00518882]
[1773131490627,0.56969985,2064.7,2063.9,0.54679522]
[1773131492232,0.56969985,2064.9,2063.9,0.54679522]
[1773131492521,0.56969985,2065.3,2063.9,0.54679522]
[1773131493426,0.56969985,2065.3,2064.0,0.5416064]
[1773131494326,0.56969985,2065.3,2064.2,0.5945606]
[1773131494521,0.00380178,2065.4,2064.6,0.5945606]
[1773131494720,0.56728544,2065.4,2064.6,0.5945606]
[1773131494924,0.00380178,2065.4,2064.6,0.5945606]
[1773131495429,2.12253149,2065.8,2064.6,0.5945606]
[1773131495430,2.68601515,2065.8,2064.8,0.5945606]
[1773131495725,0.56348366,2066.5,2064.8,0.5945606]
[1773131495923,0.56348366,2066.5,2065.0,0.5945606]
[1773131496325,0.56778343,2066.5,2065.1,0.5945606]
[1773131498124,0.24195,2066.4,2065.1,0.5945606]
[1773131498325,0.56348366,2066.1,2064.9,0.5945606]
[1773131499033,0.56348366,2065.7,2064.7,0.5945606]
[1773131499233,0.56348366,2065.5,2064.3,0.5945606]
[1773131499431,0.56348366,2065.3,2064.3,0.5945606]
[1773131500225,0.24211,2065.0,2064.0,0.5945606]
[1773131500430,0.56348366,2064.9,2064.0,0.5945606]
[1773131505531,0.56348366,2064.9,2063.9,0.00518882]
[1773131505931,0.56348366,2064.7,2063.9,0.00518882]
[1773131507035,0.56348366,2064.7,2063.6,0.5945606]
[1773131508133,0.56348366,2064.7,2063.6,0.59828752]
[1773131509336,0.56348366,2064.5,2063.6,0.59828752]
[1773131511442,0.55272699,2064.3,2063.6,0.59828752]
[1773131514044,0.55272699,2064.3,2063.6,0.00372692]
[1773131514444,0.55272699,2064.3,2063.6,0.58381668]
[1773131516652,0.55272699,2064.1,2063.6,0.00372692]
[1773131516947,0.55272699,2063.9,2063.1,0.58008976]
[1773131517647,0.55272699,2063.9,2062.7,0.58008976]
[1773131517853,0.55272699,2063.9,2062.7,0.58572901]
[1773131519155,0.55272699,2063.7,2062.7,0.58572901]
[1773131521757,0.55272699,2063.5,2062.7,0.00563925]
[1773131521965,0.55272699,2063.3,2062.4,0.58008976]
[1773131522958,0.55788345,2063.5,2062.4,0.58610715]
[1773131523158,0.00515646,2063.5,2062.4,0.58610715]
[1773131523356,0.00515646,2063.5,2062.6,0.58008976]
[1773131523657,0.5590666,2064.3,2063.0,0.57433226]
[1773131523857,0.5590666,2064.3,2063.1,0.57433226]
[1773131524557,0.56510324,2064.3,2063.1,0.57433226]
[1773131525457,0.5590666,2064.1,2063.1,0.57433226]
[1773131527662,0.5590666,2063.9,2062.7,0.57433226]
[1773131527962,0.5590666,2064.1,2062.8,0.57433226]
[1773131528162,0.5590666,2064.1,2063.0,0.57433226]
[1773131529763,0.56510324,2064.3,2063.2,0.57433226]
[1773131530359,0.56510324,2064.3,2063.3,9.77833226]
[1773131530559,0.56510324,2064.3,2063.4,0.57433226]
[1773131531860,0.00603664,2064.3,2063.4,0.57433226]
[1773131533062,0.00603664,2064.3,2063.4,6.59055782]
[1773131533264,0.00603664,2064.3,2063.5,0.57433226]
[1773131533660,0.5590666,2064.7,2063.7,0.57433226]
[1773131533867,0.5590666,2065.2,2063.8,0.57433226]
[1773131534564,0.5590666,2065.2,2063.9,0.57433226]
[1773131534764,0.56390308,2065.2,2064.1,0.57433226]
[1773131535869,0.56390308,2065.2,2063.9,0.57898354]
[1773131535870,0.5590666,2065.0,2063.9,0.57898354]
[1773131536262,0.5590666,2065.0,2063.9,0.00465128]
[1773131536458,0.5590666,2064.8,2063.9,0.00465128]
[1773131536765,0.5590666,2064.8,2063.9,0.57898354]
[1773131537266,0.5590666,2064.6,2063.9,0.00465128]
[1773131537764,0.5590666,2064.6,2063.3,6.01622556]
[1773131537965,0.5590666,2064.6,2063.4,0.57433226]
[1773131538765,0.5590666,2064.6,2063.4,0.57785535]
[1773131540569,0.5590666,2064.6,2063.6,0.57433226]
[1773131542266,0.5590666,2064.9,2063.6,0.57433226]
[1773131543572,0.5590666,2064.9,2063.8,0.57433226]
[1773131544470,0.5590666,2064.9,2064.0,0.57433226]
[1773131544669,0.5590666,2064.9,2064.2,0.57433226]
[1773131544875,0.5,2065.0,2064.2,0.57433226]
[1773131545368,1.0590666,2065.0,2064.2,0.57433226]
[1773131545875,0.5,2065.0,2064.2,0.57433226]
[1773131546272,0.5590666,2064.9,2064.2,0.57433226]
[1773131546476,0.5590666,2064.9,2064.3,9.185]
[1773131546671,0.5590666,2064.9,2064.2,0.57433226]
[1773131546882,0.5590666,2064.9,2063.8,0.57433226]
[1773131547074,0.5590666,2064.9,2064.0,0.57433226]
[1773131551673,0.5590666,2064.9,2063.8,0.57433226]
[1773131552078,0.5590666,2064.9,2063.9,0.57433226]
[1773131553081,0.5,2065.0,2064.1,0.57433226]
[1773131553377,0.5590666,2064.9,2064.1,0.57433226]
[1773131554167,0.5,2065.0,2064.1,0.57433226]
[1773131555378,0.5,2065.0,2064.3,0.56314107]
[1773131556077,1.08618157,2065.0,2064.3,0.56314107]
[1773131556893,0.5,2065.0,2064.3,0.56314107]
[1773131557678,0.58618157,2064.9,2064.4,9.172]
[1773131557982,0.58618157,2064.9,2064.5,0.56314107]
[1773131558182,0.58618157,2064.9,2064.3,0.56314107]
[1773131558385,0.58618157,2064.9,2064.4,0.56314107]
[1773131558978,0.58618157,2064.9,2064.2,6.57936663]
[1773131559177,0.58618157,2064.9,2064.3,0.56314107]
[1773131559587,0.58618157,2064.9,2064.1,0.56314107]
[1773131560884,0.58618157,2064.9,2063.9,6.01622556]
[1773131560885,0.58618157,2064.9,2063.9,0.56314107]
[1773131562180,0.58618157,2064.9,2064.0,0.56314107]
[1773131563685,0.58618157,2064.9,2064.2,0.56314107]
[1773131564480,0.5,2065.0,2064.2,0.56314107]
[1773131564682,0.5,2065.0,2064.4,0.56314107]
[1773131565581,1.08618157,2065.0,2064.4,0.56314107]
[1773131565884,0.58618157,2064.9,2064.2,9.73514107]
[1773131566587,0.58618157,2064.9,2064.3,0.56314107]
[1773131569390,0.58618157,2064.9,2064.1,6.57936663]
[1773131569590,0.58618157,2064.9,2064.2,0.56314107]
[1773131569987,0.58618157,2064.9,2064.0,6.57936663]
[1773131570186,0.58618157,2064.9,2064.0,6.01622556]
[1773131570391,0.58618157,2064.9,2063.9,15.75636663]
[1773131570792,0.58618157,2064.9,2063.9,9.74014107]
[1773131570991,0.58618157,2064.9,2063.9,0.56314107]
[1773131571789,0.58618157,2064.9,2063.8,9.74015825]
[1773131572190,0.58618157,2064.9,2063.8,0.56215825]
[1773131576292,0.58618157,2064.9,2063.9,0.56215825]
[1773131576486,0.58618157,2064.9,2064.0,0.56215825]
[1773131576694,0.5,2065.0,2064.3,0.56215825]
[1773131576893,1.06636697,2065.0,2064.5,0.56215825]
[1773131577388,0.56636697,2064.9,2064.5,0.56215825]
[1773131577594,0.56636697,2064.9,2064.1,6.01622556]
[1773131577794,0.56636697,2064.9,2064.2,9.19]
[1773131577989,0.56636697,2064.9,2064.1,9.75315825]
[1773131578187,0.56636697,2064.9,2064.2,0.56215825]
[1773131578685,0.56636697,2064.9,2064.0,0.56215825]